[Event "*** Titled Tuesday Blitz"]
[Site "Chess.com"]
[Date "2020.05.26"]
[Round "6"]
[White "eCztery"]
[Black "stoleriu"]
[Result "0-1"]
[WhiteElo "2334"]
[BlackElo "2564"]
[TimeControl "180+1"]
[EndTime "11:10:36 PDT"]
[Termination "stoleriu won by resignation"]

1. e4 {[%clk 0:03:00.9]} 1... e6 {[%clk 0:02:59.6]} 2. d4 {[%clk 0:02:59]} 2...
d5 {[%clk 0:03:00.5]} 3. Nc3 {[%clk 0:02:59.4]} 3... Bb4 {[%clk 0:03:00.1]} 4.
Qd3 {[%clk 0:02:56.9]} 4... dxe4 {[%clk 0:02:44.9]} 5. Qxe4 {[%clk 0:02:57.8]}
5... Nf6 {[%clk 0:02:45]} 6. Qh4 {[%clk 0:02:57.8]} 6... b6 {[%clk 0:02:30.5]}
7. Bg5 {[%clk 0:02:54.1]} 7... Bb7 {[%clk 0:02:29.5]} 8. O-O-O {[%clk
0:02:36.4]} 8... Bxc3 {[%clk 0:01:56.1]} 9. bxc3 {[%clk 0:02:37.3]} 9... h6
{[%clk 0:01:57]} 10. Nf3 {[%clk 0:02:26.9]} 10... Nbd7 {[%clk 0:01:50.7]} 11.
Bb5 {[%clk 0:02:21.6]} 11... c6 {[%clk 0:01:35.9]} 12. Bc4 {[%clk 0:02:21.3]}
12... Qe7 {[%clk 0:01:33.8]} 13. Rhe1 {[%clk 0:02:00.6]} 13... Qa3+ {[%clk
0:01:21.6]} 14. Kb1 {[%clk 0:01:59.1]} 14... Qxc3 {[%clk 0:01:16.7]} 15. Bb3
{[%clk 0:01:53.3]} 15... Qb4 {[%clk 0:01:11.6]} 16. Ne5 {[%clk 0:01:46.2]} 16...
Nxe5 {[%clk 0:00:53]} 17. Rxe5 {[%clk 0:01:27.1]} 17... Qe7 {[%clk 0:00:22.1]}
18. Bc1 {[%clk 0:01:08.3]} 18... Nd5 {[%clk 0:00:19.1]} 19. Qg3 {[%clk
0:01:03.1]} 19... O-O-O {[%clk 0:00:17.8]} 20. c4 {[%clk 0:00:51.3]} 20... Nf6
{[%clk 0:00:18]} 21. Bb2 {[%clk 0:00:43.1]} 21... g6 {[%clk 0:00:15.3]} 22. f4
{[%clk 0:00:41.4]} 22... Nh5 {[%clk 0:00:14.3]} 23. Qe3 {[%clk 0:00:38]} 23...
Rd7 {[%clk 0:00:14.3]} 24. d5 {[%clk 0:00:32]} 24... Rhd8 {[%clk 0:00:14.2]} 25.
Rc1 {[%clk 0:00:29.7]} 25... Ng7 {[%clk 0:00:11.5]} 26. Ba4 {[%clk 0:00:20.3]}
26... Rc7 {[%clk 0:00:08]} 27. dxe6 {[%clk 0:00:16.4]} 27... Nxe6 {[%clk
0:00:08]} 28. g4 {[%clk 0:00:14.7]} 28... Qb4 {[%clk 0:00:07.3]} 29. Bb3 {[%clk
0:00:13.1]} 29... Nc5 {[%clk 0:00:03.6]} 30. Bc3 {[%clk 0:00:10.7]} 30... Qa3
{[%clk 0:00:04]} 31. Bb2 {[%clk 0:00:11.1]} 31... Qb4 {[%clk 0:00:04.6]} 32. f5
{[%clk 0:00:06]} 32... Qd2 {[%clk 0:00:03.9]} 33. Qxd2 {[%clk 0:00:04.3]} 33...
Rxd2 {[%clk 0:00:04.8]} 34. fxg6 {[%clk 0:00:04.9]} 34... fxg6 {[%clk
0:00:05.7]} 35. Rce1 {[%clk 0:00:05.1]} 35... Rd8 {[%clk 0:00:05.7]} 36. Re8
{[%clk 0:00:06]} 36... Rd7 {[%clk 0:00:05.6]} 37. Bc2 {[%clk 0:00:05.6]} 37...
Ba6 {[%clk 0:00:05.3]} 38. Bxg6 {[%clk 0:00:05.2]} 38... Bxc4 {[%clk 0:00:05.7]}
39. Bf5 {[%clk 0:00:05.5]} 39... Bd3+ {[%clk 0:00:06.3]} 40. Bxd3 {[%clk
0:00:04.9]} 40... Nxd3 {[%clk 0:00:07.2]} 41. Rxd8+ {[%clk 0:00:05.8]} 41...
Rxd8 {[%clk 0:00:07.4]} 42. Rf1 {[%clk 0:00:05.8]} 42... Nxb2 {[%clk 0:00:07.1]}
43. Kxb2 {[%clk 0:00:03.8]} 43... Rd2+ {[%clk 0:00:07.7]} 44. Kc3 {[%clk
0:00:04.4]} 44... Rxh2 {[%clk 0:00:08]} 45. a4 {[%clk 0:00:03]} 45... Kb7 {[%clk
0:00:07.2]} 46. Rf7+ {[%clk 0:00:01.5]} 46... Ka6 {[%clk 0:00:07.7]} 47. Rh7
{[%clk 0:00:02.4]} 47... Rg2 {[%clk 0:00:07.3]} 48. Rg7 {[%clk 0:00:02.1]} 48...
h5 {[%clk 0:00:05.1]} 49. Rh7 {[%clk 0:00:01.8]} 49... hxg4 {[%clk 0:00:05.3]}
50. Rg7 {[%clk 0:00:02]} 50... Rg3+ {[%clk 0:00:05.7]} 51. Kd4 {[%clk
0:00:01.1]} 51... Ra3 {[%clk 0:00:05.4]} 52. Ke5 {[%clk 0:00:02]} 52... Rxa4
{[%clk 0:00:05.8]} 53. Kd6 {[%clk 0:00:02.9]} 53... Kb5 {[%clk 0:00:06.1]} 54.
Kc7 {[%clk 0:00:03.8]} 54... c5 {[%clk 0:00:05.4]} 55. Kd6 {[%clk 0:00:03.4]}
55... a5 {[%clk 0:00:05.2]} 56. Rg5 {[%clk 0:00:04.3]} 56... Rd4+ {[%clk
0:00:05.5]} 57. Ke5 {[%clk 0:00:03.7]} 57... a4 {[%clk 0:00:06.4]} 58. Rg8
{[%clk 0:00:03.5]} 58... a3 {[%clk 0:00:06.9]} 59. Ra8 {[%clk 0:00:04.4]} 59...
Ra4 {[%clk 0:00:07.4]} 60. Rd8 {[%clk 0:00:05]} 60... a2 {[%clk 0:00:07.4]} 61.
Rd1 {[%clk 0:00:05.9]} 61... a1=Q+ {[%clk 0:00:07.4]} 62. Rxa1 {[%clk
0:00:06.6]} 62... Rxa1 {[%clk 0:00:08.3]} 63. Kf4 {[%clk 0:00:07.5]} 63... c4
{[%clk 0:00:08.9]} 64. Kg3 {[%clk 0:00:08.4]} 64... c3 {[%clk 0:00:09.8]} 65.
Kf2 {[%clk 0:00:07]} 65... c2 {[%clk 0:00:10.7]} 66. Ke2 {[%clk 0:00:07.4]}
66... c1=Q {[%clk 0:00:10.3]} 67. Kd3 {[%clk 0:00:08.3]} 67... Ra3+ {[%clk
0:00:10.7]} 68. Ke4 {[%clk 0:00:08.4]} 68... Qe3+ {[%clk 0:00:11.1]} 69. Kf5
{[%clk 0:00:09.3]} 69... Qf3+ {[%clk 0:00:11.5]} 70. Kg6 {[%clk 0:00:10.2]}
70... g3 {[%clk 0:00:12.1]} 71. Kg5 {[%clk 0:00:10.3]} 71... g2 {[%clk 0:00:13]}
72. Kh4 {[%clk 0:00:11.2]} 72... Kc4 {[%clk 0:00:13.1]} 73. Kg5 {[%clk
0:00:10.5]} 73... b5 {[%clk 0:00:13.6]} 74. Kh4 {[%clk 0:00:11.1]} 74... b4
{[%clk 0:00:14.1]} 75. Kg5 {[%clk 0:00:08.8]} 75... b3 {[%clk 0:00:15]} 76. Kh4
{[%clk 0:00:08.7]} 76... b2 {[%clk 0:00:15.9]} 77. Kg5 {[%clk 0:00:08.7]} 77...
b1=Q {[%clk 0:00:15.7]} 78. Kh4 {[%clk 0:00:08.9]} 78... Qf4+ {[%clk 0:00:15.1]}
79. Kh5 {[%clk 0:00:08.1]} 79... Qh2+ {[%clk 0:00:15.3]} 80. Kg5 {[%clk
0:00:06.9]} 80... g1=Q+ {[%clk 0:00:15.4]} 81. Kf6 {[%clk 0:00:07.3]} 81... Qf4+
{[%clk 0:00:15.1]} 82. Ke7 {[%clk 0:00:07.6]} 82... Qc5+ {[%clk 0:00:15.2]} 83.
Kd7 {[%clk 0:00:07.6]} 83... Qh7+ {[%clk 0:00:14.8]} 0-1

[Event "*** Titled Tuesday Blitz"]
[Site "Chess.com"]
[Date "2020.05.26"]
[Round "7"]
[White "Colombiano07"]
[Black "InitiatingASC"]
[Result "0-1"]
[WhiteElo "2272"]
[BlackElo "2395"]
[TimeControl "180+1"]
[EndTime "11:15:08 PDT"]
[Termination "InitiatingASC won by resignation"]

1. e4 {[%clk 0:03:00.9]} 1... c5 {[%clk 0:02:59.8]} 2. Nf3 {[%clk 0:03:00.4]}
2... Nc6 {[%clk 0:02:58.7]} 3. d4 {[%clk 0:03:01]} 3... cxd4 {[%clk 0:02:58.7]}
4. Nxd4 {[%clk 0:03:01.9]} 4... Nf6 {[%clk 0:02:58.3]} 5. Nc3 {[%clk 0:03:02.5]}
5... e5 {[%clk 0:02:56.2]} 6. Ndb5 {[%clk 0:03:02.9]} 6... h6 {[%clk 0:02:56.4]}
7. Nd6+ {[%clk 0:02:55.4]} 7... Bxd6 {[%clk 0:02:55.3]} 8. Qxd6 {[%clk
0:02:56.3]} 8... Qe7 {[%clk 0:02:55.9]} 9. Qc7 {[%clk 0:02:51.9]} 9... O-O
{[%clk 0:02:54]} 10. Bc4 {[%clk 0:02:51.5]} 10... Ne8 {[%clk 0:02:50]} 11. Nd5
{[%clk 0:02:42.7]} 11... Qc5 {[%clk 0:02:39.1]} 0-1

[Event "*** Titled Tuesday Blitz"]
[Site "Chess.com"]
[Date "2020.05.26"]
[Round "7"]
[White "Quiet_Desperation"]
[Black "tgpgoat"]
[Result "1-0"]
[WhiteElo "2205"]
[BlackElo "2064"]
[TimeControl "180+1"]
[EndTime "11:15:41 PDT"]
[Termination "Quiet_Desperation won by checkmate"]

1. e4 {[%clk 0:03:00.9]} 1... c5 {[%clk 0:02:59.6]} 2. d4 {[%clk 0:03:00.3]}
2... cxd4 {[%clk 0:02:59.5]} 3. c3 {[%clk 0:03:00.5]} 3... dxc3 {[%clk
0:03:00.4]} 4. Nxc3 {[%clk 0:03:00.6]} 4... Nc6 {[%clk 0:03:01.3]} 5. Nf3 {[%clk
0:03:01]} 5... e6 {[%clk 0:03:01.4]} 6. Bc4 {[%clk 0:03:01.5]} 6... Qc7 {[%clk
0:03:01.1]} 7. O-O {[%clk 0:03:00.6]} 7... Nf6 {[%clk 0:03:00.9]} 8. Nb5 {[%clk
0:03:00.5]} 8... Qb8 {[%clk 0:03:00.7]} 9. h3 {[%clk 0:03:00.9]} 9... a6 {[%clk
0:03:00.7]} 10. Nc3 {[%clk 0:03:01.2]} 10... h5 {[%clk 0:02:59.3]} 11. Re1
{[%clk 0:02:58.8]} 11... Ng4 {[%clk 0:02:58.6]} 12. Nd5 {[%clk 0:02:40]} 12...
Bc5 {[%clk 0:02:49.7]} 13. Bf4 {[%clk 0:02:36.3]} 13... Nxf2 {[%clk 0:02:42.3]}
14. Bxb8 {[%clk 0:02:30.2]} 14... Nxd1+ {[%clk 0:02:42]} 15. Kf1 {[%clk
0:02:28.8]} 15... Rxb8 {[%clk 0:02:40]} 16. Raxd1 {[%clk 0:02:27.2]} 16... exd5
{[%clk 0:02:38.8]} 17. exd5+ {[%clk 0:02:27.1]} 17... Kf8 {[%clk 0:02:37.8]} 18.
dxc6 {[%clk 0:02:27]} 18... dxc6 {[%clk 0:02:38.4]} 19. Rd8# {[%clk 0:02:25]}
1-0

[Event "*** Titled Tuesday Blitz"]
[Site "Chess.com"]
[Date "2020.05.26"]
[Round "7"]
[White "rugbyclub"]
[Black "Manukyan_Artak"]
[Result "0-1"]
[WhiteElo "2103"]
[BlackElo "2283"]
[TimeControl "180+1"]
[EndTime "11:15:51 PDT"]
[Termination "Manukyan_Artak won by resignation"]

1. c4 {[%clk 0:02:58.4]} 1... c6 {[%clk 0:02:59.9]} 2. Nc3 {[%clk 0:02:56.8]}
2... d5 {[%clk 0:02:59.9]} 3. cxd5 {[%clk 0:02:56.8]} 3... cxd5 {[%clk
0:02:58.9]} 4. d4 {[%clk 0:02:57.4]} 4... Nc6 {[%clk 0:02:59.1]} 5. Bf4 {[%clk
0:02:57.8]} 5... Bf5 {[%clk 0:02:57.1]} 6. e3 {[%clk 0:02:49.3]} 6... e6 {[%clk
0:02:54.1]} 7. Qb3 {[%clk 0:02:48.9]} 7... Qb6 {[%clk 0:02:44.2]} 8. Qxb6 {[%clk
0:02:48.4]} 8... axb6 {[%clk 0:02:45.1]} 9. Bb5 {[%clk 0:02:46.1]} 9... Kd7
{[%clk 0:02:41.5]} 10. Nf3 {[%clk 0:02:45.5]} 10... f6 {[%clk 0:02:41.7]} 11.
O-O {[%clk 0:02:44.7]} 11... Bd6 {[%clk 0:02:39.7]} 12. Bxd6 {[%clk 0:02:42.4]}
12... Kxd6 {[%clk 0:02:40.6]} 13. Rfc1 {[%clk 0:02:41.7]} 13... Nge7 {[%clk
0:02:39.6]} 14. a3 {[%clk 0:02:41.3]} 14... Na5 {[%clk 0:02:31.2]} 15. Na4
{[%clk 0:02:39.7]} 15... Nb3 {[%clk 0:02:28.5]} 16. Nxb6 {[%clk 0:02:37.1]}
16... Ra5 {[%clk 0:02:22.3]} 0-1

[Event "*** Titled Tuesday Blitz"]
[Site "Chess.com"]
[Date "2020.05.26"]
[Round "7"]
[White "bakki78"]
[Black "Olkaa"]
[Result "0-1"]
[WhiteElo "2747"]
[BlackElo "2636"]
[TimeControl "180+1"]
[EndTime "11:15:56 PDT"]
[Termination "Olkaa won by resignation"]

1. e4 {[%clk 0:02:58.6]} 1... c5 {[%clk 0:02:59.3]} 2. Nf3 {[%clk 0:02:58.4]}
2... Nc6 {[%clk 0:02:59.8]} 3. Bb5 {[%clk 0:02:57.2]} 3... g6 {[%clk 0:02:59.8]}
4. Bxc6 {[%clk 0:02:56.6]} 4... dxc6 {[%clk 0:03:00.7]} 5. d3 {[%clk 0:02:56.2]}
5... Bg7 {[%clk 0:03:00.3]} 6. h3 {[%clk 0:02:56.4]} 6... Nf6 {[%clk 0:02:59.2]}
7. Bd2 {[%clk 0:02:51.2]} 7... O-O {[%clk 0:02:51.4]} 8. Qc1 {[%clk 0:02:50.5]}
8... Re8 {[%clk 0:02:44.6]} 9. Bh6 {[%clk 0:02:46.6]} 9... e5 {[%clk 0:02:39.7]}
10. Bxg7 {[%clk 0:02:42.8]} 10... Kxg7 {[%clk 0:02:39.4]} 11. Nbd2 {[%clk
0:02:42.6]} 11... Nh5 {[%clk 0:02:29.3]} 12. Nc4 {[%clk 0:02:41.1]} 12... f6
{[%clk 0:02:28.2]} 13. Nh2 {[%clk 0:02:36.5]} 13... Nf4 {[%clk 0:02:25.3]} 14.
O-O {[%clk 0:02:17.7]} 14... Ne2+ {[%clk 0:02:24]} 0-1

[Event "*** Titled Tuesday Blitz"]
[Site "Chess.com"]
[Date "2020.05.26"]
[Round "7"]
[White "TheoSlade"]
[Black "pavelalexandru07"]
[Result "1-0"]
[WhiteElo "2332"]
[BlackElo "2145"]
[TimeControl "180+1"]
[EndTime "11:16:31 PDT"]
[Termination "TheoSlade won by resignation"]

1. d4 {[%clk 0:03:00.9]} 1... Nf6 {[%clk 0:02:59.2]} 2. c4 {[%clk 0:03:01.4]}
2... c5 {[%clk 0:02:58.4]} 3. d5 {[%clk 0:03:01.5]} 3... e6 {[%clk 0:02:58.9]}
4. Nc3 {[%clk 0:03:01.7]} 4... exd5 {[%clk 0:02:59.4]} 5. cxd5 {[%clk
0:03:02.6]} 5... d6 {[%clk 0:02:59.8]} 6. e4 {[%clk 0:03:03.2]} 6... g6 {[%clk
0:03:00.3]} 7. Bd3 {[%clk 0:03:03.9]} 7... Bg7 {[%clk 0:02:59.1]} 8. h3 {[%clk
0:03:04.6]} 8... O-O {[%clk 0:02:57.9]} 9. Nf3 {[%clk 0:03:05.2]} 9... b5 {[%clk
0:02:58.4]} 10. Bxb5 {[%clk 0:03:03.9]} 10... Nxe4 {[%clk 0:02:57.9]} 11. Nxe4
{[%clk 0:03:04.8]} 11... Qa5+ {[%clk 0:02:58]} 12. Nfd2 {[%clk 0:03:05.3]} 12...
Qxb5 {[%clk 0:02:58.3]} 13. Nxd6 {[%clk 0:03:05.9]} 13... Qa6 {[%clk 0:02:58.7]}
14. N2c4 {[%clk 0:03:06.5]} 14... Nd7 {[%clk 0:02:59.1]} 15. O-O {[%clk
0:03:07.1]} 15... Ne5 {[%clk 0:02:59.3]} 16. Nxc8 {[%clk 0:03:04.6]} 16... Rfxc8
{[%clk 0:02:54.3]} 17. Nxe5 {[%clk 0:03:05.1]} 17... Bxe5 {[%clk 0:02:53.9]} 18.
Re1 {[%clk 0:03:02.7]} 18... Bf6 {[%clk 0:02:47.3]} 19. Qf3 {[%clk 0:02:41]}
19... Rab8 {[%clk 0:02:39.3]} 20. d6 {[%clk 0:02:32]} 20... Bd4 {[%clk
0:02:13.5]} 21. d7 {[%clk 0:02:29.6]} 21... Rd8 {[%clk 0:02:12.9]} 22. Bf4
{[%clk 0:02:29.6]} 22... Rb7 {[%clk 0:02:03.1]} 23. Re8+ {[%clk 0:02:27.8]} 1-0

[Event "*** Titled Tuesday Blitz"]
[Site "Chess.com"]
[Date "2020.05.26"]
[Round "7"]
[White "Leo_C"]
[Black "Klaus1995"]
[Result "1-0"]
[WhiteElo "2276"]
[BlackElo "1829"]
[TimeControl "180+1"]
[EndTime "11:16:57 PDT"]
[Termination "Leo_C won by checkmate"]

1. d4 {[%clk 0:03:00.9]} 1... Nf6 {[%clk 0:02:57.5]} 2. g4 {[%clk 0:02:58.4]}
2... Nxg4 {[%clk 0:02:56.2]} 3. e4 {[%clk 0:02:57.4]} 3... Nf6 {[%clk
0:02:50.4]} 4. e5 {[%clk 0:02:56.7]} 4... Nd5 {[%clk 0:02:50.7]} 5. c4 {[%clk
0:02:56.4]} 5... Nb6 {[%clk 0:02:51.3]} 6. Nc3 {[%clk 0:02:56.8]} 6... d5 {[%clk
0:02:51]} 7. c5 {[%clk 0:02:56.1]} 7... N6d7 {[%clk 0:02:50.9]} 8. Be3 {[%clk
0:02:56.1]} 8... e6 {[%clk 0:02:51]} 9. Qd2 {[%clk 0:02:55.4]} 9... b6 {[%clk
0:02:51.1]} 10. cxb6 {[%clk 0:02:54]} 10... axb6 {[%clk 0:02:50.6]} 11. f4
{[%clk 0:02:52.1]} 11... c5 {[%clk 0:02:50.8]} 12. Nf3 {[%clk 0:02:52.1]} 12...
cxd4 {[%clk 0:02:49.5]} 13. Nxd4 {[%clk 0:02:53]} 13... Ba6 {[%clk 0:02:48.2]}
14. Bxa6 {[%clk 0:02:51.5]} 14... Rxa6 {[%clk 0:02:47]} 15. O-O {[%clk
0:02:51.4]} 15... Bc5 {[%clk 0:02:46.8]} 16. f5 {[%clk 0:02:50.6]} 16... Nxe5
{[%clk 0:02:46]} 17. fxe6 {[%clk 0:02:49.4]} 17... f6 {[%clk 0:02:42.4]} 18. Nf5
{[%clk 0:02:46]} 18... Bxe3+ {[%clk 0:02:39.3]} 19. Qxe3 {[%clk 0:02:44.7]}
19... Nbc6 {[%clk 0:02:31.8]} 20. Rad1 {[%clk 0:02:30.8]} 20... d4 {[%clk
0:02:26.2]} 21. Nxd4 {[%clk 0:02:28.6]} 21... Nxd4 {[%clk 0:02:25.4]} 22. Rxd4
{[%clk 0:02:27.8]} 22... Qe7 {[%clk 0:02:14.2]} 23. Nd5 {[%clk 0:02:26.5]} 23...
Qc5 {[%clk 0:02:12.8]} 24. Rc1 {[%clk 0:02:24.4]} 24... Qxd4 {[%clk 0:01:44.9]}
25. Rc8# {[%clk 0:02:20]} 1-0

[Event "*** Titled Tuesday Blitz"]
[Site "Chess.com"]
[Date "2020.05.26"]
[Round "7"]
[White "Justinz"]
[Black "Zq1"]
[Result "0-1"]
[WhiteElo "2351"]
[BlackElo "2508"]
[TimeControl "180+1"]
[EndTime "11:17:05 PDT"]
[Termination "Zq1 won by resignation"]

1. e4 {[%clk 0:02:53.5]} 1... c5 {[%clk 0:02:59.3]} 2. Nf3 {[%clk 0:02:52.8]}
2... d6 {[%clk 0:02:57.7]} 3. d4 {[%clk 0:02:52.7]} 3... cxd4 {[%clk 0:02:57.3]}
4. Nxd4 {[%clk 0:02:53.6]} 4... Nf6 {[%clk 0:02:57.6]} 5. Nc3 {[%clk 0:02:53.9]}
5... Nc6 {[%clk 0:02:57.4]} 6. Bg5 {[%clk 0:02:53]} 6... e6 {[%clk 0:02:57]} 7.
Qd2 {[%clk 0:02:53.5]} 7... Be7 {[%clk 0:02:56.6]} 8. O-O-O {[%clk 0:02:53]}
8... O-O {[%clk 0:02:55.4]} 9. f4 {[%clk 0:02:52.5]} 9... h6 {[%clk 0:02:53.8]}
10. h4 {[%clk 0:02:52]} 10... Nxd4 {[%clk 0:02:51.9]} 11. Qxd4 {[%clk
0:02:51.4]} 11... Qa5 {[%clk 0:02:51.7]} 12. Be2 {[%clk 0:02:32.4]} 12... e5
{[%clk 0:02:50]} 13. Qd2 {[%clk 0:02:21.5]} 13... exf4 {[%clk 0:02:48.5]} 14.
Bxf4 {[%clk 0:02:20.3]} 14... Be6 {[%clk 0:02:46]} 15. Kb1 {[%clk 0:02:10.8]}
15... Nxe4 {[%clk 0:02:39.3]} 16. Qd3 {[%clk 0:01:47.5]} 16... Nxc3+ {[%clk
0:02:34.3]} 17. Qxc3 {[%clk 0:01:47.5]} 17... Qxa2+ {[%clk 0:02:31.3]} 18. Kc1
{[%clk 0:01:47.6]} 18... Rac8 {[%clk 0:02:26.5]} 19. Qa3 {[%clk 0:01:46.6]}
19... Qxa3 {[%clk 0:02:20.2]} 20. bxa3 {[%clk 0:01:47.5]} 20... d5 {[%clk
0:02:13.6]} 21. Kb2 {[%clk 0:01:46.9]} 21... Bf6+ {[%clk 0:02:12.2]} 22. Kb1
{[%clk 0:01:46.9]} 22... Rc3 {[%clk 0:02:06.7]} 23. Rd4 {[%clk 0:01:46.6]} 23...
Bxd4 {[%clk 0:02:04.8]} 0-1

[Event "*** Titled Tuesday Blitz"]
[Site "Chess.com"]
[Date "2020.05.26"]
[Round "7"]
[White "djano"]
[Black "Turquoise_2701"]
[Result "1-0"]
[WhiteElo "2454"]
[BlackElo "2179"]
[TimeControl "180+1"]
[EndTime "11:17:09 PDT"]
[Termination "djano won by checkmate"]

1. Nf3 {[%clk 0:03:00.9]} 1... d5 {[%clk 0:02:59]} 2. d4 {[%clk 0:03:00.9]} 2...
Nf6 {[%clk 0:02:58.2]} 3. Bf4 {[%clk 0:03:00.9]} 3... e6 {[%clk 0:02:58.1]} 4.
Nbd2 {[%clk 0:02:59.9]} 4... Bd6 {[%clk 0:02:58.5]} 5. Bg3 {[%clk 0:02:59.9]}
5... O-O {[%clk 0:02:57.8]} 6. e3 {[%clk 0:02:59.5]} 6... c5 {[%clk 0:02:57.4]}
7. c3 {[%clk 0:02:57.9]} 7... Nc6 {[%clk 0:02:57.7]} 8. Bd3 {[%clk 0:02:58]}
8... Qc7 {[%clk 0:02:49.9]} 9. Qe2 {[%clk 0:02:57]} 9... Bxg3 {[%clk 0:02:29.9]}
10. hxg3 {[%clk 0:02:56.3]} 10... e5 {[%clk 0:02:29.9]} 11. dxe5 {[%clk
0:02:50.1]} 11... Nxe5 {[%clk 0:02:30.8]} 12. Nxe5 {[%clk 0:02:48]} 12... Qxe5
{[%clk 0:02:31.7]} 13. f4 {[%clk 0:02:37.4]} 13... Qe7 {[%clk 0:02:12.4]} 14.
O-O-O {[%clk 0:02:32.9]} 14... Re8 {[%clk 0:02:10]} 15. Bxh7+ {[%clk 0:02:15.3]}
15... Nxh7 {[%clk 0:02:07.6]} 16. Qh5 {[%clk 0:02:15.3]} 16... Nf6 {[%clk
0:01:19.6]} 17. Qh8# {[%clk 0:02:14.3]} 1-0

[Event "*** Titled Tuesday Blitz"]
[Site "Chess.com"]
[Date "2020.05.26"]
[Round "7"]
[White "Roaccutane"]
[Black "Gennady_Kozlov"]
[Result "1-0"]
[WhiteElo "2721"]
[BlackElo "2557"]
[TimeControl "180+1"]
[EndTime "11:17:34 PDT"]
[Termination "Roaccutane won by resignation"]

1. d4 {[%clk 0:03:00.9]} 1... e6 {[%clk 0:02:59.8]} 2. e4 {[%clk 0:03:00.5]}
2... d5 {[%clk 0:02:59.2]} 3. Nc3 {[%clk 0:03:01]} 3... Nf6 {[%clk 0:02:57.8]}
4. Bg5 {[%clk 0:03:00.1]} 4... Be7 {[%clk 0:02:57.3]} 5. e5 {[%clk 0:02:59.6]}
5... Nfd7 {[%clk 0:02:57.7]} 6. h4 {[%clk 0:03:00.1]} 6... Nc6 {[%clk
0:02:58.1]} 7. Bb5 {[%clk 0:02:43.3]} 7... Bxg5 {[%clk 0:02:52.5]} 8. hxg5
{[%clk 0:02:44.2]} 8... Qxg5 {[%clk 0:02:52]} 9. Bxc6 {[%clk 0:02:36.9]} 9...
bxc6 {[%clk 0:02:51.1]} 10. Qf3 {[%clk 0:02:30.1]} 10... Ba6 {[%clk 0:02:47.7]}
11. Rh5 {[%clk 0:02:12.8]} 11... Qg6 {[%clk 0:02:45.6]} 12. O-O-O {[%clk
0:02:12.5]} 12... c5 {[%clk 0:02:44.2]} 13. Nh3 {[%clk 0:01:59.6]} 13... cxd4
{[%clk 0:02:43.1]} 14. Rxd4 {[%clk 0:01:56.2]} 14... c5 {[%clk 0:02:33.9]} 15.
Rdh4 {[%clk 0:01:41]} 15... f6 {[%clk 0:02:27]} 16. exf6 {[%clk 0:01:22.9]}
16... Nxf6 {[%clk 0:02:23.3]} 17. Rg5 {[%clk 0:01:19.1]} 17... Qf7 {[%clk
0:02:21.9]} 18. Qg3 {[%clk 0:01:08.3]} 18... O-O-O {[%clk 0:02:16.5]} 19. Rxg7
{[%clk 0:01:06.7]} 1-0

[Event "*** Titled Tuesday Blitz"]
[Site "Chess.com"]
[Date "2020.05.26"]
[Round "7"]
[White "Atanejhad"]
[Black "Tall-guy"]
[Result "0-1"]
[WhiteElo "2435"]
[BlackElo "2153"]
[TimeControl "180+1"]
[EndTime "11:17:43 PDT"]
[Termination "Tall-guy won by resignation"]

1. d4 {[%clk 0:03:00.9]} 1... d5 {[%clk 0:02:59.1]} 2. c4 {[%clk 0:03:01.2]}
2... c6 {[%clk 0:02:59.1]} 3. Nf3 {[%clk 0:03:01.6]} 3... Nf6 {[%clk 0:02:59.1]}
4. Nc3 {[%clk 0:03:02]} 4... dxc4 {[%clk 0:02:59.3]} 5. a4 {[%clk 0:03:02.4]}
5... Bf5 {[%clk 0:02:58]} 6. Ne5 {[%clk 0:03:02.9]} 6... e6 {[%clk 0:02:55.9]}
7. f3 {[%clk 0:02:59.2]} 7... Bb4 {[%clk 0:02:54.6]} 8. e4 {[%clk 0:02:59.2]}
8... Bxe4 {[%clk 0:02:53.6]} 9. fxe4 {[%clk 0:03:00.1]} 9... Nxe4 {[%clk
0:02:48.8]} 10. Qf3 {[%clk 0:02:38.7]} 10... Qxd4 {[%clk 0:02:10.9]} 11. Qxf7+
{[%clk 0:02:37]} 11... Kd8 {[%clk 0:02:10.9]} 12. Qxg7 {[%clk 0:01:43.2]} 12...
Bxc3+ {[%clk 0:01:32.7]} 13. bxc3 {[%clk 0:01:42.4]} 13... Qf2+ {[%clk 0:01:33]}
0-1

[Event "*** Titled Tuesday Blitz"]
[Site "Chess.com"]
[Date "2020.05.26"]
[Round "7"]
[White "Lucas_Tomiello"]
[Black "oykuince"]
[Result "0-1"]
[WhiteElo "2264"]
[BlackElo "2047"]
[TimeControl "180+1"]
[EndTime "11:17:52 PDT"]
[Termination "oykuince won by resignation"]

1. e4 {[%clk 0:03:00.9]} 1... c5 {[%clk 0:02:59.9]} 2. Nf3 {[%clk 0:03:00.9]}
2... e6 {[%clk 0:02:59.5]} 3. d4 {[%clk 0:03:00.4]} 3... cxd4 {[%clk 0:03:00.4]}
4. Nxd4 {[%clk 0:03:01.3]} 4... Nc6 {[%clk 0:02:59.6]} 5. Nc3 {[%clk 0:02:59.2]}
5... Qc7 {[%clk 0:02:58.4]} 6. Be3 {[%clk 0:02:59.1]} 6... a6 {[%clk 0:02:58.5]}
7. a3 {[%clk 0:02:59.7]} 7... b5 {[%clk 0:02:58.5]} 8. f4 {[%clk 0:02:58.9]}
8... Bb7 {[%clk 0:02:58.8]} 9. Nxc6 {[%clk 0:02:54.8]} 9... Bxc6 {[%clk
0:02:56.5]} 10. Bd3 {[%clk 0:02:54.9]} 10... d6 {[%clk 0:02:56]} 11. O-O {[%clk
0:02:54.2]} 11... Nf6 {[%clk 0:02:55.3]} 12. Qd2 {[%clk 0:02:51.2]} 12... Be7
{[%clk 0:02:54.9]} 13. Rae1 {[%clk 0:02:51]} 13... O-O {[%clk 0:02:53.3]} 14. h3
{[%clk 0:02:45.4]} 14... Rac8 {[%clk 0:02:52.3]} 15. g4 {[%clk 0:02:41.7]} 15...
Qb7 {[%clk 0:02:50.7]} 16. Bd4 {[%clk 0:02:35.2]} 16... d5 {[%clk 0:02:41.6]}
17. e5 {[%clk 0:02:24.1]} 17... Ne4 {[%clk 0:02:40.5]} 18. Bxe4 {[%clk
0:02:21.4]} 18... dxe4 {[%clk 0:02:40.4]} 19. f5 {[%clk 0:02:17.2]} 19... Rfd8
{[%clk 0:02:38.3]} 20. Qe3 {[%clk 0:02:14.7]} 20... Be8 {[%clk 0:02:32.7]} 21.
Kh2 {[%clk 0:01:53.7]} 21... Rc4 {[%clk 0:02:20.7]} 22. Rd1 {[%clk 0:01:42.6]}
22... h6 {[%clk 0:02:12.4]} 23. f6 {[%clk 0:01:40.4]} 23... Bf8 {[%clk
0:02:06.5]} 24. fxg7 {[%clk 0:01:35.9]} 24... Bxg7 {[%clk 0:02:06.7]} 25. b3
{[%clk 0:01:18.5]} 25... Rcxd4 {[%clk 0:02:04.3]} 26. Rxd4 {[%clk 0:01:18.7]}
26... Bxe5+ {[%clk 0:02:04]} 27. Kg2 {[%clk 0:01:19.4]} 27... Bxd4 {[%clk
0:02:03.5]} 28. Qxe4 {[%clk 0:01:20.3]} 0-1